[Event "Titled Tuesday Blitz August 22 Early 2023"]
[White "Di Benedetto, Edoardo"]
[Black "Pershina, Elena"]
[WhiteFideId "875740"]
[BlackFideId "24147516"]
[WhiteElo "2708"]
[BlackElo "2418"]
[Result "1-0"]
[Round "2"]
[TimeControl "180+1"]
[Date "2023.08.22"]
[WhiteClock "0:00:24"]
[BlackClock "0:00:03"]
[Board "89"]

1. d4 {[%clk 0:03:00]}  d5 {[%clk 0:02:59]} 2. c4 {[%clk 0:03:01]}  c6 {[%clk 0:02:59]} 3. Nc3 {[%clk 0:03:02]}  Nf6 {[%clk 0:03:00]} 4. Nf3 {[%clk 0:03:02]}  dxc4 {[%clk 0:02:58]} 5. a4 {[%clk 0:03:01]}  Bf5 {[%clk 0:02:58]} 6. e3 {[%clk 0:03:02]}  e6 {[%clk 0:02:57]} 7. Bxc4 {[%clk 0:03:02]}  Bb4 {[%clk 0:02:57]} 8. O-O {[%clk 0:03:03]}  O-O {[%clk 0:02:56]} 9. Qe2 {[%clk 0:03:03]}  Nbd7 {[%clk 0:02:41]} 10. e4 {[%clk 0:03:03]}  Bg6 {[%clk 0:02:41]} 11. Bd3 {[%clk 0:03:01]}  Bh5 {[%clk 0:02:00]} 12. e5 {[%clk 0:02:44]}  Nd5 {[%clk 0:01:52]} 13. Ne4 {[%clk 0:02:43]}  c5 {[%clk 0:01:35]} 14. dxc5 {[%clk 0:02:30]}  Nxe5 {[%clk 0:01:28]} 15. Bc2 {[%clk 0:02:22]}  Nxf3+ {[%clk 0:01:24]} 16. gxf3 {[%clk 0:02:21]}  Qh4 {[%clk 0:01:17]} 17. Bg5 {[%clk 0:02:03]}  Qh3 {[%clk 0:01:16]} 18. Ng3 {[%clk 0:02:03]}  Bxc5 {[%clk 0:01:04]} 19. Be3 {[%clk 0:01:58]}  Bd6 {[%clk 0:00:49]} 20. Be4 {[%clk 0:01:04]}  Rac8 {[%clk 0:00:36]} 21. Rad1 {[%clk 0:01:01]}  Rfd8 {[%clk 0:00:19]} 22. Bxd5 {[%clk 0:00:53]}  exd5 {[%clk 0:00:18]} 23. Rxd5 {[%clk 0:00:54]}  Rc2 {[%clk 0:00:09]} 24. Rxh5 {[%clk 0:00:49]}  Qxg3+ {[%clk 0:00:07]} 25. hxg3 {[%clk 0:00:45]}  Rxe2 {[%clk 0:00:08]} 26. Rd1 {[%clk 0:00:41]}  Be7 {[%clk 0:00:07]} 27. Rxd8+ {[%clk 0:00:40]}  Bxd8 {[%clk 0:00:07]} 28. Rd5 {[%clk 0:00:33]}  Bf6 {[%clk 0:00:07]} 29. b3 {[%clk 0:00:29]}  g6 {[%clk 0:00:07]} 30. Bxa7 {[%clk 0:00:28]}  Kg7 {[%clk 0:00:06]} 31. Rb5 {[%clk 0:00:25]}  Rb2 {[%clk 0:00:06]} 32. Rxb7 {[%clk 0:00:25]}  Rb1+ {[%clk 0:00:05]} 33. Kg2 {[%clk 0:00:25]}  h5 {[%clk 0:00:05]} 34. Be3 {[%clk 0:00:23]}  h4 {[%clk 0:00:05]} 35. gxh4 {[%clk 0:00:23]}  Bxh4 {[%clk 0:00:06]} 36. a5 {[%clk 0:00:23]}  Bf6 {[%clk 0:00:03]} 37. a6 {[%clk 0:00:24]} 1-0


[Site "https://www.chess.com"]

[Event "Titled Tuesday Blitz August 22 Early 2023"]
[White "Baches Garcia, Guillermo"]
[Black "Volovich, Vasily"]
[WhiteFideId "2209764"]
[BlackFideId "34169676"]
[WhiteElo "2413"]
[BlackElo "2696"]
[Result "0-1"]
[Round "2"]
[TimeControl "180+1"]
[Date "2023.08.22"]
[WhiteClock "0:00:00"]
[BlackClock "0:00:08"]
[Board "92"]

1. e4 {[%clk 0:03:00]}  e6 {[%clk 0:02:59]} 2. d4 {[%clk 0:03:00]}  d5 {[%clk 0:02:58]} 3. exd5 {[%clk 0:03:01]}  exd5 {[%clk 0:02:58]} 4. Nf3 {[%clk 0:03:02]}  Nf6 {[%clk 0:02:58]} 5. Bd3 {[%clk 0:03:02]}  c5 {[%clk 0:02:58]} 6. O-O {[%clk 0:03:02]}  c4 {[%clk 0:02:59]} 7. Re1+ {[%clk 0:03:02]}  Be7 {[%clk 0:02:59]} 8. Bf1 {[%clk 0:03:03]}  O-O {[%clk 0:03:00]} 9. Nc3 {[%clk 0:03:03]}  Nc6 {[%clk 0:03:00]} 10. Ne5 {[%clk 0:03:03]}  Bb4 {[%clk 0:02:57]} 11. Bg5 {[%clk 0:03:00]}  Bxc3 {[%clk 0:02:55]} 12. bxc3 {[%clk 0:03:01]}  h6 {[%clk 0:02:56]} 13. Bh4 {[%clk 0:03:00]}  Bf5 {[%clk 0:02:47]} 14. g4 {[%clk 0:02:48]}  Be4 {[%clk 0:02:39]} 15. f3 {[%clk 0:02:42]}  Bh7 {[%clk 0:02:33]} 16. Bxf6 {[%clk 0:02:24]}  gxf6 {[%clk 0:02:28]} 17. Nxc6 {[%clk 0:02:24]}  bxc6 {[%clk 0:02:29]} 18. Qd2 {[%clk 0:02:16]}  Kg7 {[%clk 0:02:28]} 19. Rab1 {[%clk 0:02:10]}  Rb8 {[%clk 0:02:26]} 20. h4 {[%clk 0:01:59]}  Qc7 {[%clk 0:02:22]} 21. Kg2 {[%clk 0:01:55]}  Rxb1 {[%clk 0:02:15]} 22. Rxb1 {[%clk 0:01:54]}  Rb8 {[%clk 0:02:16]} 23. Rxb8 {[%clk 0:01:50]}  Qxb8 {[%clk 0:02:17]} 24. g5 {[%clk 0:01:48]}  hxg5 {[%clk 0:02:16]} 25. hxg5 {[%clk 0:01:48]}  Qd6 {[%clk 0:02:06]} 26. Be2 {[%clk 0:01:30]}  Bg6 {[%clk 0:02:05]} 27. Bd1 {[%clk 0:01:22]}  Qe7 {[%clk 0:02:04]} 28. gxf6+ {[%clk 0:01:13]}  Qxf6 {[%clk 0:02:05]} 29. Qe3 {[%clk 0:01:12]}  Qf5 {[%clk 0:01:54]} 30. Qe5+ {[%clk 0:01:03]}  Qf6 {[%clk 0:01:23]} 31. Kg3 {[%clk 0:00:52]}  a5 {[%clk 0:01:15]} 32. a3 {[%clk 0:00:50]}  Bf5 {[%clk 0:01:10]} 33. Kf4 {[%clk 0:00:31]}  Kg6 {[%clk 0:01:09]} 34. Qxf6+ {[%clk 0:00:27]}  Kxf6 {[%clk 0:01:09]} 35. Be2 {[%clk 0:00:26]}  Bxc2 {[%clk 0:01:09]} 36. Bf1 {[%clk 0:00:27]}  Bf5 {[%clk 0:01:01]} 37. Be2 {[%clk 0:00:26]}  Bd3 {[%clk 0:00:47]} 38. Bd1 {[%clk 0:00:23]}  Ke6 {[%clk 0:00:44]} 39. Ba4 {[%clk 0:00:21]}  Kd6 {[%clk 0:00:44]} 40. Bd1 {[%clk 0:00:20]}  f6 {[%clk 0:00:40]} 41. Ke3 {[%clk 0:00:19]}  c5 {[%clk 0:00:38]} 42. Ba4 {[%clk 0:00:17]}  Bf5 {[%clk 0:00:35]} 43. Be8 {[%clk 0:00:17]}  Bh3 {[%clk 0:00:24]} 44. Bf7 {[%clk 0:00:17]}  Bg2 {[%clk 0:00:23]} 45. Bg8 {[%clk 0:00:16]}  cxd4+ {[%clk 0:00:22]} 46. cxd4 {[%clk 0:00:16]}  Bh3 {[%clk 0:00:16]} 47. f4 {[%clk 0:00:16]}  Be6 {[%clk 0:00:14]} 48. Bh7 {[%clk 0:00:16]}  Kc6 {[%clk 0:00:14]} 49. Bc2 {[%clk 0:00:15]}  Bg4 {[%clk 0:00:11]} 50. Kd2 {[%clk 0:00:15]}  Kd6 {[%clk 0:00:09]} 51. Ke3 {[%clk 0:00:15]}  Ke6 {[%clk 0:00:09]} 52. Ba4 {[%clk 0:00:15]}  Bf5 {[%clk 0:00:08]} 53. Kd2 {[%clk 0:00:00]}  Be4 {[%clk 0:00:08]} 0-1


[Site "https://www.chess.com"]

[Event "Titled Tuesday Blitz August 22 Early 2023"]
[White "Polaczek, Richard"]
[Black "GaiozNigalidze"]
[WhiteFideId "200026"]
[WhiteElo "2404"]
[BlackElo "2688"]
[Result "0-1"]
[Round "2"]
[TimeControl "180+1"]
[Date "2023.08.22"]
[WhiteClock "0:00:02"]
[BlackClock "0:00:20"]
[Board "96"]

1. d4 {[%clk 0:02:59]}  Nf6 {[%clk 0:02:59]} 2. c4 {[%clk 0:02:58]}  e6 {[%clk 0:02:57]} 3. Nc3 {[%clk 0:02:57]}  Bb4 {[%clk 0:02:56]} 4. f3 {[%clk 0:02:54]}  c5 {[%clk 0:02:44]} 5. d5 {[%clk 0:02:52]}  d6 {[%clk 0:02:45]} 6. e4 {[%clk 0:02:51]}  Bxc3+ {[%clk 0:02:44]} 7. bxc3 {[%clk 0:02:49]}  e5 {[%clk 0:02:45]} 8. Bd3 {[%clk 0:02:39]}  Nbd7 {[%clk 0:02:44]} 9. Ne2 {[%clk 0:02:39]}  b6 {[%clk 0:02:31]} 10. O-O {[%clk 0:02:37]}  a5 {[%clk 0:02:29]} 11. a4 {[%clk 0:02:25]}  Qe7 {[%clk 0:02:25]} 12. g4 {[%clk 0:02:22]}  h6 {[%clk 0:02:19]} 13. Ng3 {[%clk 0:02:19]}  g6 {[%clk 0:02:04]} 14. Be3 {[%clk 0:02:16]}  Ba6 {[%clk 0:02:03]} 15. Qd2 {[%clk 0:02:04]}  Qf8 {[%clk 0:02:03]} 16. h4 {[%clk 0:01:58]}  O-O-O {[%clk 0:01:59]} 17. Rf2 {[%clk 0:01:48]}  Kc7 {[%clk 0:01:58]} 18. Be2 {[%clk 0:01:34]}  Re8 {[%clk 0:01:49]} 19. Rb1 {[%clk 0:01:24]}  Qe7 {[%clk 0:01:36]} 20. Bxh6 {[%clk 0:01:09]}  Nxg4 {[%clk 0:01:36]} 21. Bg5 {[%clk 0:01:00]}  f6 {[%clk 0:01:26]} 22. fxg4 {[%clk 0:00:59]}  fxg5 {[%clk 0:01:27]} 23. Qxg5 {[%clk 0:00:58]}  Rxh4 {[%clk 0:01:19]} 24. Qxe7 {[%clk 0:00:53]}  Rxe7 {[%clk 0:01:20]} 25. Rbf1 {[%clk 0:00:49]}  Rhh7 {[%clk 0:01:15]} 26. g5 {[%clk 0:00:45]}  Bc8 {[%clk 0:01:04]} 27. Bg4 {[%clk 0:00:41]}  Rh4 {[%clk 0:01:04]} 28. Be6 {[%clk 0:00:39]}  Reh7 {[%clk 0:00:41]} 29. Kg2 {[%clk 0:00:37]}  Rh2+ {[%clk 0:00:40]} 30. Kf3 {[%clk 0:00:37]}  Rxf2+ {[%clk 0:00:38]} 31. Rxf2 {[%clk 0:00:36]}  Nf8 {[%clk 0:00:35]} 32. Bxc8 {[%clk 0:00:34]}  Kxc8 {[%clk 0:00:36]} 33. Kg4 {[%clk 0:00:33]}  Nd7 {[%clk 0:00:37]} 34. Nf5 {[%clk 0:00:31]}  gxf5+ {[%clk 0:00:34]} 35. exf5 {[%clk 0:00:30]}  Kd8 {[%clk 0:00:34]} 36. f6 {[%clk 0:00:29]}  Rh1 {[%clk 0:00:28]} 37. g6 {[%clk 0:00:27]}  Ke8 {[%clk 0:00:20]} 38. Kf5 {[%clk 0:00:24]}  Rh5+ {[%clk 0:00:20]} 39. Ke6 {[%clk 0:00:24]}  Nf8+ {[%clk 0:00:20]} 40. Kxd6 {[%clk 0:00:23]}  Nxg6 {[%clk 0:00:21]} 41. f7+ {[%clk 0:00:21]}  Kf8 {[%clk 0:00:21]} 42. Kc6 {[%clk 0:00:21]}  e4 {[%clk 0:00:22]} 43. Kxb6 {[%clk 0:00:21]}  e3 {[%clk 0:00:21]} 44. Re2 {[%clk 0:00:20]}  Re5 {[%clk 0:00:22]} 45. Kxc5 {[%clk 0:00:19]}  Nf4 {[%clk 0:00:21]} 46. Re1 {[%clk 0:00:13]}  Nd3+ {[%clk 0:00:20]} 47. Kd6 {[%clk 0:00:12]}  Nxe1 {[%clk 0:00:20]} 48. Kxe5 {[%clk 0:00:02]}  Nd3+ {[%clk 0:00:20]} 0-1


[Site "https://www.chess.com"]

[Event "Titled Tuesday Blitz August 22 Early 2023"]
[White "Dehtiarov, Roman"]
[Black "Gheorghiu, Calin"]
[WhiteFideId "14186640"]
[BlackFideId "1200305"]
[WhiteElo "2688"]
[BlackElo "2403"]
[Result "1-0"]
[Round "2"]
[TimeControl "180+1"]
[Date "2023.08.22"]
[WhiteClock "0:00:42"]
[BlackClock "0:00:03"]
[Board "97"]

1. e4 {[%clk 0:03:00]}  c6 {[%clk 0:02:59]} 2. Nc3 {[%clk 0:03:00]}  d5 {[%clk 0:02:57]} 3. Nf3 {[%clk 0:03:01]}  dxe4 {[%clk 0:02:57]} 4. Nxe4 {[%clk 0:03:01]}  Nf6 {[%clk 0:02:57]} 5. Qe2 {[%clk 0:03:01]}  Nxe4 {[%clk 0:02:50]} 6. Qxe4 {[%clk 0:03:02]}  Nd7 {[%clk 0:02:51]} 7. Bc4 {[%clk 0:02:56]}  Nf6 {[%clk 0:02:45]} 8. Ne5 {[%clk 0:02:53]}  e6 {[%clk 0:02:39]} 9. Qe2 {[%clk 0:02:53]}  Be7 {[%clk 0:02:10]} 10. c3 {[%clk 0:02:50]}  O-O {[%clk 0:02:07]} 11. O-O {[%clk 0:02:49]}  c5 {[%clk 0:01:57]} 12. Rd1 {[%clk 0:02:40]}  Qc7 {[%clk 0:01:50]} 13. d4 {[%clk 0:02:30]}  cxd4 {[%clk 0:01:50]} 14. Rxd4 {[%clk 0:02:30]}  Bc5 {[%clk 0:01:33]} 15. Rd1 {[%clk 0:02:24]}  a6 {[%clk 0:01:29]} 16. Bf4 {[%clk 0:02:12]}  Qe7 {[%clk 0:01:18]} 17. b4 {[%clk 0:02:00]}  Ba7 {[%clk 0:01:18]} 18. a4 {[%clk 0:01:43]}  Bb8 {[%clk 0:00:43]} 19. a5 {[%clk 0:01:38]}  Nd7 {[%clk 0:00:35]} 20. Rd4 {[%clk 0:01:02]}  Nxe5 {[%clk 0:00:29]} 21. Bxe5 {[%clk 0:01:03]}  Bxe5 {[%clk 0:00:28]} 22. Qxe5 {[%clk 0:01:04]}  Bd7 {[%clk 0:00:26]} 23. Qc7 {[%clk 0:01:02]}  Rfc8 {[%clk 0:00:05]} 24. Qxb7 {[%clk 0:00:46]}  Rcb8 {[%clk 0:00:03]} 25. Qxd7 {[%clk 0:00:42]} 1-0


[Site "https://www.chess.com"]

[Event "Titled Tuesday Blitz August 22 Early 2023"]
[White "Djordjevic, Vuk"]
[Black "Sovetbekova, Nurai"]
[WhiteFideId "902098"]
[BlackFideId "13801910"]
[WhiteElo "2670"]
[BlackElo "2326"]
[Result "1-0"]
[Round "2"]
[TimeControl "180+1"]
[Date "2023.08.22"]
[WhiteClock "0:00:21"]
[BlackClock "0:00:07"]
[Board "103"]

1. d4 {[%clk 0:03:00]}  Nf6 {[%clk 0:02:59]} 2. Bg5 {[%clk 0:03:00]}  d5 {[%clk 0:02:59]} 3. Bxf6 {[%clk 0:03:01]}  gxf6 {[%clk 0:02:56]} 4. e3 {[%clk 0:03:01]}  Bf5 {[%clk 0:02:56]} 5. c4 {[%clk 0:03:00]}  e6 {[%clk 0:02:55]} 6. Nc3 {[%clk 0:02:59]}  c6 {[%clk 0:02:49]} 7. Nf3 {[%clk 0:02:57]}  Nd7 {[%clk 0:02:47]} 8. Nh4 {[%clk 0:02:56]}  Bg6 {[%clk 0:02:47]} 9. Nxg6 {[%clk 0:02:55]}  hxg6 {[%clk 0:02:46]} 10. Bd3 {[%clk 0:02:53]}  f5 {[%clk 0:02:42]} 11. Qe2 {[%clk 0:02:38]}  Bg7 {[%clk 0:02:40]} 12. O-O-O {[%clk 0:02:35]}  dxc4 {[%clk 0:02:33]} 13. Bxc4 {[%clk 0:02:34]}  Nb6 {[%clk 0:02:33]} 14. Bb3 {[%clk 0:02:32]}  Nd5 {[%clk 0:02:33]} 15. Bxd5 {[%clk 0:02:09]}  cxd5 {[%clk 0:02:32]} 16. Kb1 {[%clk 0:02:08]}  Qd7 {[%clk 0:02:19]} 17. Rc1 {[%clk 0:02:07]}  Rc8 {[%clk 0:02:11]} 18. Nb5 {[%clk 0:02:03]}  O-O {[%clk 0:01:49]} 19. Nxa7 {[%clk 0:01:55]}  Ra8 {[%clk 0:01:48]} 20. Nb5 {[%clk 0:01:55]}  Ra5 {[%clk 0:01:47]} 21. Nc3 {[%clk 0:01:49]}  b5 {[%clk 0:01:47]} 22. b3 {[%clk 0:01:03]}  Rfa8 {[%clk 0:01:38]} 23. Rc2 {[%clk 0:01:03]}  e5 {[%clk 0:01:36]} 24. dxe5 {[%clk 0:00:54]}  Bxe5 {[%clk 0:01:35]} 25. Rd1 {[%clk 0:00:54]}  Bxc3 {[%clk 0:01:07]} 26. Rxc3 {[%clk 0:00:55]}  Rxa2 {[%clk 0:01:04]} 27. Qxa2 {[%clk 0:00:56]}  Rxa2 {[%clk 0:01:04]} 28. Kxa2 {[%clk 0:00:57]}  b4 {[%clk 0:00:42]} 29. Rcd3 {[%clk 0:00:55]}  Qa7+ {[%clk 0:00:41]} 30. Kb2 {[%clk 0:00:52]}  Kg7 {[%clk 0:00:32]} 31. g3 {[%clk 0:00:40]}  Qc7 {[%clk 0:00:22]} 32. h4 {[%clk 0:00:30]}  Qe5+ {[%clk 0:00:19]} 33. Rd4 {[%clk 0:00:30]}  Qf6 {[%clk 0:00:18]} 34. Ra1 {[%clk 0:00:29]}  Qc6 {[%clk 0:00:18]} 35. Rxb4 {[%clk 0:00:26]}  Qf6+ {[%clk 0:00:13]} 36. Rd4 {[%clk 0:00:25]}  g5 {[%clk 0:00:13]} 37. hxg5 {[%clk 0:00:24]}  Qxg5 {[%clk 0:00:14]} 38. Ra5 {[%clk 0:00:22]}  Qg4 {[%clk 0:00:07]} 39. Rxg4+ {[%clk 0:00:21]} 1-0


[Site "https://www.chess.com"]

[Event "Titled Tuesday Blitz August 22 Early 2023"]
[White "Eynullayev, Atilla"]
[Black "Pavlidis, Anastasios"]
[WhiteFideId "13413570"]
[BlackFideId "4208404"]
[WhiteElo "2652"]
[BlackElo "2303"]
[Result "1-0"]
[Round "2"]
[TimeControl "180+1"]
[Date "2023.08.22"]
[WhiteClock "0:00:13"]
[BlackClock "0:00:00"]
[Board "106"]

1. d4 {[%clk 0:03:00]}  d5 {[%clk 0:02:59]} 2. c4 {[%clk 0:03:01]}  e6 {[%clk 0:02:59]} 3. Nc3 {[%clk 0:03:01]}  h6 {[%clk 0:03:00]} 4. Nf3 {[%clk 0:02:57]}  Nf6 {[%clk 0:02:59]} 5. cxd5 {[%clk 0:02:56]}  exd5 {[%clk 0:02:59]} 6. Bf4 {[%clk 0:02:57]}  Bd6 {[%clk 0:02:59]} 7. Bg3 {[%clk 0:02:57]}  O-O {[%clk 0:02:56]} 8. e3 {[%clk 0:02:57]}  c5 {[%clk 0:02:56]} 9. dxc5 {[%clk 0:02:57]}  Bxc5 {[%clk 0:02:56]} 10. Bd3 {[%clk 0:02:58]}  Nc6 {[%clk 0:02:53]} 11. O-O {[%clk 0:02:56]}  Be6 {[%clk 0:02:51]} 12. h3 {[%clk 0:02:55]}  Qd7 {[%clk 0:02:51]} 13. Rc1 {[%clk 0:02:51]}  Bd6 {[%clk 0:02:46]} 14. Bxd6 {[%clk 0:02:50]}  Qxd6 {[%clk 0:02:47]} 15. Nb5 {[%clk 0:02:51]}  Qd7 {[%clk 0:02:45]} 16. Kh2 {[%clk 0:02:36]}  Rad8 {[%clk 0:02:36]} 17. Nbd4 {[%clk 0:02:36]}  Ne4 {[%clk 0:02:36]} 18. Qa4 {[%clk 0:02:15]}  Nxd4 {[%clk 0:02:05]} 19. Qxd4 {[%clk 0:02:14]}  a6 {[%clk 0:01:58]} 20. Rc2 {[%clk 0:02:09]}  Qd6+ {[%clk 0:01:51]} 21. Kg1 {[%clk 0:02:08]}  Bf5 {[%clk 0:01:20]} 22. Rfc1 {[%clk 0:02:06]}  Rfe8 {[%clk 0:01:20]} 23. Rc7 {[%clk 0:01:38]}  Re7 {[%clk 0:01:19]} 24. Rxe7 {[%clk 0:01:36]}  Qxe7 {[%clk 0:01:19]} 25. Qb6 {[%clk 0:01:28]}  Rc8 {[%clk 0:01:06]} 26. Rxc8+ {[%clk 0:01:25]}  Bxc8 {[%clk 0:01:06]} 27. Qd4 {[%clk 0:01:04]}  Qc5 {[%clk 0:00:55]} 28. Qe5 {[%clk 0:01:04]}  Qc1+ {[%clk 0:00:29]} 29. Kh2 {[%clk 0:01:03]}  Nf6 {[%clk 0:00:19]} 30. Qb8 {[%clk 0:00:51]}  g6 {[%clk 0:00:20]} 31. Qe5 {[%clk 0:00:43]}  Qc6 {[%clk 0:00:19]} 32. Nd4 {[%clk 0:00:43]}  Qb6 {[%clk 0:00:16]} 33. g4 {[%clk 0:00:20]}  Kg7 {[%clk 0:00:16]} 34. Kg3 {[%clk 0:00:20]}  Bd7 {[%clk 0:00:12]} 35. h4 {[%clk 0:00:20]}  Bxg4 {[%clk 0:00:10]} 36. f3 {[%clk 0:00:20]}  Bd7 {[%clk 0:00:10]} 37. h5 {[%clk 0:00:20]}  Kh7 {[%clk 0:00:08]} 38. hxg6+ {[%clk 0:00:20]}  Kg7 {[%clk 0:00:08]} 39. gxf7 {[%clk 0:00:19]}  Kxf7 {[%clk 0:00:08]} 40. Bf5 {[%clk 0:00:19]}  Bxf5 {[%clk 0:00:07]} 41. Nxf5 {[%clk 0:00:20]}  Qd8 {[%clk 0:00:05]} 42. Nxh6+ {[%clk 0:00:19]}  Kg6 {[%clk 0:00:05]} 43. Nf5 {[%clk 0:00:19]}  Kf7 {[%clk 0:00:04]} 44. Nd6+ {[%clk 0:00:17]}  Kf8 {[%clk 0:00:03]} 45. Kf2 {[%clk 0:00:14]}  Qe7 {[%clk 0:00:02]} 46. Qxe7+ {[%clk 0:00:13]}  Kxe7 {[%clk 0:00:02]} 47. Nxb7 {[%clk 0:00:13]}  Kd7 {[%clk 0:00:02]} 48. Nc5+ {[%clk 0:00:13]}  Kc6 {[%clk 0:00:03]} 49. Nxa6 {[%clk 0:00:14]}  Kb5 {[%clk 0:00:03]} 50. Nc7+ {[%clk 0:00:14]}  Kc6 {[%clk 0:00:04]} 51. Ne6 {[%clk 0:00:15]}  Kd6 {[%clk 0:00:04]} 52. Nd4 {[%clk 0:00:15]}  Kc5 {[%clk 0:00:04]} 53. Ke2 {[%clk 0:00:16]}  Kc4 {[%clk 0:00:04]} 54. Kd2 {[%clk 0:00:16]}  Nd7 {[%clk 0:00:04]} 55. b3+ {[%clk 0:00:17]}  Kb4 {[%clk 0:00:04]} 56. a4 {[%clk 0:00:17]}  Nc5 {[%clk 0:00:05]} 57. Kc2 {[%clk 0:00:17]}  Na6 {[%clk 0:00:04]} 58. f4 {[%clk 0:00:17]}  Nc5 {[%clk 0:00:04]} 59. f5 {[%clk 0:00:18]}  Ne4 {[%clk 0:00:05]} 60. Kb2 {[%clk 0:00:16]}  Nf6 {[%clk 0:00:04]} 61. Nc6+ {[%clk 0:00:16]}  Kc5 {[%clk 0:00:05]} 62. Ne7 {[%clk 0:00:17]}  Kd6 {[%clk 0:00:05]} 63. Ng6 {[%clk 0:00:16]}  Kc5 {[%clk 0:00:04]} 64. Ka3 {[%clk 0:00:17]}  Ne4 {[%clk 0:00:04]} 65. b4+ {[%clk 0:00:16]}  Kc4 {[%clk 0:00:05]} 66. a5 {[%clk 0:00:17]}  Kb5 {[%clk 0:00:04]} 67. Ne5 {[%clk 0:00:16]}  Nd2 {[%clk 0:00:03]} 68. f6 {[%clk 0:00:14]}  Nb1+ {[%clk 0:00:01]} 69. Kb3 {[%clk 0:00:13]}  d4 {[%clk 0:00:01]} 70. exd4 {[%clk 0:00:13]}  Nd2+ {[%clk 0:00:00]} 71. Kc3 {[%clk 0:00:13]} 1-0


[Site "https://www.chess.com"]

[Event "Titled Tuesday Blitz August 22 Early 2023"]
[White "Agibileg, Uurtsaikh"]
[Black "Ruge, Edison"]
[WhiteFideId "4901606"]
[BlackFideId "4401000"]
[WhiteElo "2645"]
[BlackElo "2285"]
[Result "1-0"]
[Round "2"]
[TimeControl "180+1"]
[Date "2023.08.22"]
[WhiteClock "0:00:06"]
[BlackClock "0:00:00"]
[Board "109"]

1. d4 {[%clk 0:03:00]}  d5 {[%clk 0:02:58]} 2. c4 {[%clk 0:02:57]}  e5 {[%clk 0:02:58]} 3. dxe5 {[%clk 0:02:55]}  d4 {[%clk 0:02:59]} 4. Nf3 {[%clk 0:02:49]}  Nc6 {[%clk 0:02:59]} 5. a3 {[%clk 0:02:49]}  Bg4 {[%clk 0:02:59]} 6. e3 {[%clk 0:02:47]}  dxe3 {[%clk 0:02:54]} 7. Qxd8+ {[%clk 0:02:44]}  Rxd8 {[%clk 0:02:55]} 8. Bxe3 {[%clk 0:02:42]}  Bxf3 {[%clk 0:02:56]} 9. gxf3 {[%clk 0:02:42]}  Nxe5 {[%clk 0:02:56]} 10. Nd2 {[%clk 0:02:42]}  a6 {[%clk 0:02:49]} 11. O-O-O {[%clk 0:02:41]}  Nd3+ {[%clk 0:02:45]} 12. Kc2 {[%clk 0:02:40]}  Ne5 {[%clk 0:02:44]} 13. f4 {[%clk 0:02:40]}  Ng4 {[%clk 0:02:39]} 14. Bg2 {[%clk 0:02:40]}  Nxe3+ {[%clk 0:02:39]} 15. fxe3 {[%clk 0:02:27]}  c6 {[%clk 0:02:39]} 16. Ne4 {[%clk 0:02:22]}  Rxd1 {[%clk 0:02:34]} 17. Rxd1 {[%clk 0:02:22]}  h6 {[%clk 0:02:25]} 18. Bh3 {[%clk 0:02:17]}  Nf6 {[%clk 0:02:09]} 19. Nxf6+ {[%clk 0:02:15]}  gxf6 {[%clk 0:02:09]} 20. Rd7 {[%clk 0:02:16]}  Bc5 {[%clk 0:02:02]} 21. Rxb7 {[%clk 0:02:14]}  O-O {[%clk 0:02:02]} 22. e4 {[%clk 0:02:10]}  Rd8 {[%clk 0:01:58]} 23. Bd7 {[%clk 0:02:10]}  Be3 {[%clk 0:01:57]} 24. Bxc6 {[%clk 0:02:09]}  Rd2+ {[%clk 0:01:54]} 25. Kc3 {[%clk 0:02:05]}  Rxh2 {[%clk 0:01:50]} 26. b4 {[%clk 0:01:58]}  Bxf4 {[%clk 0:01:47]} 27. b5 {[%clk 0:01:54]}  Be5+ {[%clk 0:01:47]} 28. Kb4 {[%clk 0:01:48]}  axb5 {[%clk 0:01:36]} 29. cxb5 {[%clk 0:01:39]}  Bd6+ {[%clk 0:01:33]} 30. Kc4 {[%clk 0:01:29]}  Bxa3 {[%clk 0:01:31]} 31. Bd5 {[%clk 0:01:25]}  Bb2 {[%clk 0:01:26]} 32. b6 {[%clk 0:01:21]}  Be5 {[%clk 0:01:25]} 33. Rxf7 {[%clk 0:01:21]}  Kh8 {[%clk 0:01:23]} 34. b7 {[%clk 0:01:20]}  Rb2 {[%clk 0:01:23]} 35. Be6 {[%clk 0:01:10]}  Rb6 {[%clk 0:01:13]} 36. Re7 {[%clk 0:00:51]}  h5 {[%clk 0:01:02]} 37. Kd3 {[%clk 0:00:47]}  h4 {[%clk 0:00:59]} 38. Ke2 {[%clk 0:00:46]}  Rb4 {[%clk 0:00:51]} 39. Kf3 {[%clk 0:00:45]}  Rb2 {[%clk 0:00:50]} 40. Kg4 {[%clk 0:00:42]}  Rb4 {[%clk 0:00:50]} 41. Kf5 {[%clk 0:00:41]}  Rb1 {[%clk 0:00:43]} 42. Kg6 {[%clk 0:00:29]}  Rg1+ {[%clk 0:00:41]} 43. Kh6 {[%clk 0:00:29]}  Bf4+ {[%clk 0:00:28]} 44. Kh5 {[%clk 0:00:29]}  h3 {[%clk 0:00:20]} 45. Bxh3 {[%clk 0:00:27]}  Rg7 {[%clk 0:00:19]} 46. Re8+ {[%clk 0:00:23]}  Rg8 {[%clk 0:00:19]} 47. Re6 {[%clk 0:00:22]}  Rg5+ {[%clk 0:00:18]} 48. Kh4 {[%clk 0:00:22]}  Rb5 {[%clk 0:00:17]} 49. Kg4 {[%clk 0:00:14]}  Be5 {[%clk 0:00:15]} 50. Re7 {[%clk 0:00:14]}  Rb2 {[%clk 0:00:13]} 51. Kf5 {[%clk 0:00:13]}  Kg8 {[%clk 0:00:12]} 52. Kg6 {[%clk 0:00:13]}  Kf8 {[%clk 0:00:13]} 53. Rh7 {[%clk 0:00:10]}  Ke8 {[%clk 0:00:10]} 54. Be6 {[%clk 0:00:07]}  Kd8 {[%clk 0:00:10]} 55. Bd5 {[%clk 0:00:07]}  Rg2+ {[%clk 0:00:09]} 56. Kf5 {[%clk 0:00:07]}  Rf2+ {[%clk 0:00:09]} 57. Ke6 {[%clk 0:00:08]}  Rb2 {[%clk 0:00:08]} 58. Rd7+ {[%clk 0:00:08]}  Ke8 {[%clk 0:00:07]} 59. Bc6 {[%clk 0:00:09]}  Kf8 {[%clk 0:00:07]} 60. Rf7+ {[%clk 0:00:08]}  Kg8 {[%clk 0:00:06]} 61. Re7 {[%clk 0:00:07]}  Rb6 {[%clk 0:00:06]} 62. Kd7 {[%clk 0:00:07]}  Kf8 {[%clk 0:00:05]} 63. Rh7 {[%clk 0:00:05]}  Kg8 {[%clk 0:00:05]} 64. Rh1 {[%clk 0:00:04]}  Rb2 {[%clk 0:00:04]} 65. Bd5+ {[%clk 0:00:05]}  Kg7 {[%clk 0:00:03]} 66. Rc1 {[%clk 0:00:05]}  Kh6 {[%clk 0:00:03]} 67. Rg1 {[%clk 0:00:04]}  Kh5 {[%clk 0:00:02]} 68. Rg8 {[%clk 0:00:05]}  Kh4 {[%clk 0:00:02]} 69. Re8 {[%clk 0:00:04]}  Kg4 {[%clk 0:00:02]} 70. Rxe5 {[%clk 0:00:05]}  fxe5 {[%clk 0:00:00]} 71. Kc7 {[%clk 0:00:06]} 1-0


[Site "https://www.chess.com"]